bitfinex-derivatives/quotes_SOLF0:USTF0_20241015
["timestamp","ask_amount","ask_price","bid_price","bid_amount"]
[1729020395030,3.2258,155.02,154.98,15.49]
[1729020395924,3.2257,155.03,155.0,3.2262]
[1729020402732,3.2257,155.03,155.01,3.226]
[1729020403039,5.44,155.06,154.98,20.93]
[1729020403040,5.44,155.06,154.98,5.44]
[1729020403428,5.44,155.06,155.0,3.2261]
[1729020403623,3.2256,155.03,155.0,3.2261]
[1729020404638,20.93,155.06,154.99,3.2264]
[1729020405136,3.226,155.02,154.99,3.2264]
[1729020405736,3.226,155.02,154.98,5.44]
[1729020406528,3.226,155.02,154.99,3.2264]
[1729020407035,3.226,155.02,155.0,3.2262]
[1729020407838,3.226,155.02,154.99,13.1363]
[1729020409538,3.226,155.02,155.0,3.2262]
[1729020410443,9.91,155.04,155.0,3.2262]
[1729020411542,3.2258,155.02,155.0,3.2262]
[1729020412338,9.91,155.03,154.98,18.5765]
[1729020413541,3.2262,155.01,154.99,3.2264]
[1729020416849,9.91,155.0,154.91,0.9586]
[1729020417146,9.91,154.99,154.93,9.91]
[1729020417446,3.2269,154.97,154.95,3.2272]
[1729020418043,3.2268,154.98,154.95,3.2272]
[1729020418244,3.2268,154.98,154.93,9.91]
[1729020419446,3.2268,154.98,154.95,3.2272]
[1729020419846,3.227,154.97,154.95,3.2272]
[1729020420248,9.91,154.99,154.94,13.1374]
[1729020420852,2.8602,155.01,154.85,6.4587]
[1729020420853,9.91,154.95,154.85,6.4587]
[1729020421052,9.91,154.94,154.89,9.91]
[1729020421751,3.2278,154.93,154.91,3.2281]
[1729020425447,3.2278,154.93,154.87,5.44]
[1729020425448,9.91,154.92,154.87,3.2287]
[1729020425654,11.2448,154.92,154.87,3.2287]
[1729020426047,3.2285,154.9,154.87,3.2287]
[1729020426647,3.2286,154.89,154.86,13.1391]
[1729020427357,9.91,154.9,154.86,9.91]
[1729020427548,3.2288,154.88,154.85,3.2292]
[1729020427948,3.2288,154.88,154.84,15.35]
[1729020429463,3.2288,154.88,154.86,3.2291]
[1729020432260,3.2293,154.86,154.83,3.2296]
[1729020432759,9.91,154.87,154.79,1.0637]
[1729020432955,5.44,154.9,154.79,1.0637]
[1729020432956,9.91,154.84,154.79,5.44]
[1729020433163,9.91,154.84,154.79,15.35]
[1729020433354,3.2302,154.82,154.79,13.1404]
[1729020434662,9.91,154.84,154.79,9.91]
[1729020434857,3.23,154.83,154.8,3.2303]
[1729020435555,3.23,154.82,154.8,3.2303]
[1729020435751,9.91,154.83,154.77,3.2308]
[1729020435956,9.91,154.83,154.74,69.74]
[1729020435957,9.91,154.81,154.75,9.91]
[1729020436360,9.91,154.81,154.76,3.2312]
[1729020436563,9.91,154.81,154.74,5.44]
[1729020436762,9.91,154.81,154.75,9.91]
[1729020437259,9.91,154.8,154.74,9.91]
[1729020437456,9.91,154.78,154.74,9.91]
[1729020438058,13.1408,154.78,154.75,3.2313]
[1729020438760,5.44,154.82,154.76,9.91]
[1729020438962,15.35,154.82,154.76,9.91]
[1729020439263,9.91,154.8,154.72,5.44]
[1729020439566,9.91,154.8,154.76,9.91]
[1729020440170,3.2308,154.79,154.76,13.1411]
[1729020443367,3.2308,154.79,154.74,9.91]
[1729020443368,3.2312,154.77,154.74,9.91]
[1729020443564,9.91,154.76,154.67,8.4902]
[1729020443873,9.91,154.76,154.72,9.91]
[1729020444073,3.2316,154.75,154.73,3.2319]
[1729020445467,9.91,154.76,154.72,9.91]
[1729020445660,3.2315,154.75,154.72,9.91]
[1729020445872,1.3702,154.78,154.71,15.52]
[1729020446073,3.2312,154.77,154.74,3.2317]
[1729020446268,1.3702,154.78,154.74,3.2317]
[1729020446970,3.2311,154.77,154.74,3.2317]
[1729020448569,3.2311,154.77,154.71,15.52]
[1729020448774,2.6099,154.79,154.76,3.2311]
[1729020449075,1.2982,154.79,154.75,15.52]
[1729020449464,4.529,154.79,154.76,3.2311]
[1729020451177,1.4264,154.83,154.7,5.42]
[1729020451178,1.4264,154.83,154.77,15.52]
[1729020452071,6.741,154.86,154.77,15.52]
[1729020452272,3.23,154.83,154.8,3.2303]
[1729020452467,8.0785,154.86,154.8,3.2303]
[1729020452774,3.2299,154.83,154.8,3.2303]
[1729020453389,3.2301,154.82,154.8,3.2303]
[1729020453977,3.2303,154.81,154.78,3.2307]
[1729020455362,3.2303,154.81,154.79,3.2306]
[1729020457378,3.2306,154.8,154.75,20.94]
[1729020457776,5.42,154.82,154.73,15.52]
[1729020457983,16.8328,154.81,154.73,5.42]
[1729020458275,16.8328,154.81,154.72,5.42]
[1729020458465,2.7723,154.8,154.72,5.42]
[1729020458664,2.7723,154.8,154.74,3.2316]
[1729020458665,3.2312,154.77,154.74,3.2316]
[1729020458878,3.2312,154.77,154.72,5.42]
[1729020459870,3.2312,154.77,154.74,3.2315]
[1729020460073,3.2312,154.76,154.69,15.52]
[1729020460267,15.52,154.79,154.7,5.42]
[1729020460476,5.42,154.78,154.73,3.2318]
[1729020460668,3.2314,154.76,154.73,3.2318]
[1729020460871,20.94,154.78,154.7,5.42]
[1729020461075,5.42,154.78,154.71,15.52]
[1729020461375,3.231,154.77,154.71,15.52]
[1729020461576,3.231,154.77,154.74,3.2316]
[1729020461780,5.42,154.78,154.71,15.52]
[1729020461967,8.6509,154.78,154.71,15.52]
[1729020462373,8.6509,154.78,154.75,3.2313]
[1729020462780,5.42,154.78,154.76,3.231]
[1729020463081,3.2307,154.79,154.76,3.231]
[1729020463278,2.7723,154.8,154.76,3.231]
[1729020464372,3.2309,154.78,154.76,3.231]
[1729020469983,12.7023,154.8,154.75,9.93]
[1729020470185,9.63566104,154.88,154.79,9.93]
[1729020470388,9.5332,154.87,154.81,9.93]
[1729020470587,9.93,154.86,154.81,9.93]
[1729020471183,3.23,154.83,154.81,9.93]
[1729020471887,15.35,154.82,154.63,9.42355328]
[1729020472090,15.53,154.78,154.67,16.5955]
[1729020472287,3.2316,154.75,154.71,3.2322]
[1729020472777,3.2316,154.75,154.67,16.5955]
[1729020472987,3.2316,154.75,154.72,3.232]
[1729020477899,3.2317,154.74,154.72,3.232]
[1729020478597,15.53,154.78,154.72,3.232]
[1729020478898,3.2315,154.75,154.72,3.232]
[1729020479698,3.2311,154.77,154.69,20.95]
[1729020480395,3.2311,154.77,154.74,3.2315]
[1729020483803,3.2311,154.77,154.75,3.2314]
[1729020485906,3.2311,154.77,154.74,3.2316]
[1729020487102,2.8115,154.79,154.69,20.95]
[1729020487307,15.53,154.78,154.72,3.232]
[1729020487910,3.2316,154.75,154.72,3.232]
[1729020488307,15.53,154.78,154.71,3.2321]
[1729020488504,1.3231,154.77,154.71,3.2321]
[1729020489007,3.2319,154.73,154.71,3.2321]
[1729020497510,9.94,154.74,154.7,3.2324]
[1729020498012,9.94,154.71,154.69,3.2326]
[1729020499111,9.94,154.71,154.68,3.2329]
[1729020499305,9.94,154.71,154.67,9.94]
[1729020500109,3.2323,154.72,154.69,3.2325]
[1729020500612,9.94,154.73,154.69,9.94]
[1729020500923,5.42,154.76,154.69,9.94]
[1729020501211,15.36,154.76,154.7,9.94]
[1729020501412,3.2317,154.74,154.72,3.232]
[1729020502215,3.2317,154.74,154.71,3.2322]
[1729020503004,3.2317,154.74,154.72,3.2321]
[1729020503208,3.2313,154.76,154.71,9.94]
[1729020503418,9.94,154.78,154.73,9.94]
[1729020503621,9.94,154.78,154.74,3.2315]
[1729020505017,9.94,154.77,154.72,3.2319]
[1729020505210,9.94,154.75,154.72,3.2319]
[1729020506223,9.94,154.77,154.72,13.1719]
[1729020506425,8.2315,154.79,154.72,13.1719]
[1729020506630,9.94,154.77,154.72,13.1719]
[1729020507016,3.2317,154.75,154.72,13.1719]
[1729020508122,3.2317,154.74,154.72,13.1719]
[1729020508924,3.2317,154.74,154.72,9.94]
[1729020509425,3.2317,154.74,154.68,9.94]
[1729020509426,9.94,154.74,154.68,9.94]
[1729020509628,9.94,154.74,154.7,3.2324]
[1729020510031,3.2319,154.73,154.7,3.2324]
[1729020511021,9.94,154.74,154.68,9.94]
[1729020511235,3.2323,154.72,154.69,3.2326]
[1729020511438,9.94,154.72,154.68,9.94]
[1729020511642,9.94,154.72,154.67,5.42]
[1729020511931,9.94,154.71,154.67,3.233]
[1729020513035,3.2326,154.7,154.68,3.2329]
[1729020513735,3.2324,154.71,154.68,9.94]
[1729020514633,3.2324,154.71,154.69,3.2327]
[1729020514833,5.42,154.75,154.7,9.94]
[1729020515033,9.94,154.76,154.72,9.94]
[1729020515232,15.36,154.77,154.73,9.94]
[1729020515536,5.42,154.77,154.73,9.94]
[1729020515932,14.0718,154.79,154.73,9.94]
[1729020516438,4.1318,154.79,154.74,13.1715]
[1729020516635,14.0718,154.79,154.74,13.1715]
[1729020516830,3.2312,154.77,154.74,13.1715]
[1729020517032,14.0718,154.79,154.74,13.1715]
[1729020518333,9.94,154.78,154.73,13.1718]
[1729020519734,3.2314,154.76,154.74,9.94]
[1729020520236,6.0422,154.79,154.75,9.94]
[1729020520436,1.3899,154.79,154.75,9.94]
[1729020520642,15.36,154.82,154.77,13.1709]
[1729020521134,110.8525514,154.83,154.77,9.94]
[1729020521337,3.2304,154.81,154.78,3.2308]
[1729020524340,3.2304,154.81,154.78,13.1708]
[1729020525348,120.7925514,154.83,154.78,13.1708]
[1729020525534,120.7925514,154.83,154.73,8.62200084]
[1729020525535,3.2307,154.79,154.76,3.2311]
[1729020525732,120.7925514,154.83,154.77,9.94]
[1729020525933,9.94,154.79,154.74,9.94]
[1729020526127,3.2309,154.78,154.75,3.2313]
[1729020527345,3.2314,154.76,154.73,18.5917]
[1729020527840,9.94,154.78,154.73,18.5917]
[1729020528539,3.2314,154.76,154.73,18.5917]
[1729020529041,3.2307,154.79,154.76,3.2312]
[1729020529343,3.2307,154.79,154.76,13.1712]
[1729020529847,3.2308,154.78,154.76,13.1712]
[1729020530346,3.2308,154.78,154.76,9.94]
[1729020531847,3.2308,154.78,154.75,3.2314]
[1729020534042,19.5837,154.83,154.73,20.94]
[1729020534347,1.4019,154.83,154.77,15.52]
[1729020534539,5.4,154.86,154.79,15.52]
[1729020534736,3.2298,154.84,154.81,3.2301]
[1729020537851,5.4,154.88,154.81,3.2301]
[1729020538348,3.2297,154.84,154.81,3.2301]
[1729020538849,15.52,154.83,154.71,3.18671529]
[1729020539040,15.52,154.83,154.72,15.52]
[1729020539041,18.3678,154.83,154.72,15.52]
[1729020539239,15.52,154.8,154.7,16.9264]
[1729020539439,20.92,154.8,154.7,16.9264]
[1729020540150,15.52,154.78,154.7,16.9264]
[1729020540350,15.52,154.78,154.69,3.2327]
[1729020540351,3.2322,154.72,154.69,3.2327]
[1729020540942,8.1563,154.76,154.68,15.52]
[1729020541150,23.6763,154.76,154.67,8.633]
[1729020541342,8.1563,154.76,154.68,15.52]
[1729020542251,3.232,154.73,154.7,3.2325]
[1729020543253,8.1563,154.76,154.67,5.4]
[1729020543254,3.2315,154.75,154.72,3.2321]
[1729020544159,1.4223,154.76,154.69,15.52]
[1729020544349,3.2313,154.76,154.73,3.2317]
[1729020544759,1.3321,154.8,154.72,15.52]
[1729020544957,3.2312,154.77,154.74,3.2317]
[1729020546256,3.26642765,154.79,154.71,5.4]
[1729020546451,15.52,154.79,154.7,15.52]
[1729020546852,3.2319,154.74,154.7,18.7524]
[1729020547051,3.18527618,154.78,154.7,18.7524]
[1729020547247,15.52,154.77,154.68,15.52]
[1729020547448,5.4,154.76,154.68,18.7528]
[1729020548153,3.2322,154.72,154.69,3.2327]
[1729020550556,3.2317,154.74,154.68,3.2328]
[1729020550756,15.52,154.75,154.68,3.2328]
[1729020551061,15.52,154.75,154.65,15.52]
[1729020551258,3.2329,154.69,154.66,3.2332]
[1729020551565,2.7573,154.74,154.64,8.2416]
[1729020551566,15.52,154.73,154.64,8.2416]
[1729020551861,3.2331,154.68,154.64,8.2416]
[1729020553062,3.2328,154.69,154.66,3.2333]
[1729020553262,5.4,154.72,154.65,15.52]
[1729020553566,3.2327,154.7,154.67,3.233]
[1729020554060,3.2327,154.69,154.67,3.233]
[1729020554260,3.2327,154.69,154.66,3.2333]
[1729020554667,3.233,154.68,154.64,1.4182]
[1729020554964,1.3394,154.73,154.66,15.52]
[1729020555172,3.2325,154.71,154.66,15.52]
[1729020555466,6.7394,154.73,154.64,1.4182]
[1729020555861,6.7394,154.73,154.66,3.2332]
[1729020556268,6.7394,154.73,154.64,1.4182]
[1729020556467,3.2326,154.7,154.67,3.2331]
[1729020562173,3.233,154.68,154.65,3.2334]
[1729020563072,3.2332,154.67,154.65,3.2334]
[1729020563279,22.2594,154.73,154.65,3.2334]
[1729020563975,3.233,154.68,154.65,3.2334]
[1729020564176,22.2594,154.73,154.67,3.233]
[1729020564466,3.2326,154.7,154.67,3.233]
[1729020566572,5.4,154.72,154.64,1.4182]
[1729020566573,3.2329,154.69,154.66,3.2333]
[1729020569374,3.2333,154.67,154.64,4.6519]
[1729020569670,3.2333,154.67,154.64,3.2337]
[1729020569871,3.2333,154.67,154.64,13.1637]
[1729020570276,3.2333,154.67,154.64,9.93]
[1729020570575,3.2333,154.67,154.65,3.2335]
[1729020571276,3.2337,154.65,154.63,13.1639]
[1729020573881,3.2334,154.66,154.63,13.1639]
[1729020574283,3.2336,154.65,154.63,3.2339]
[1729020576677,3.2338,154.64,154.62,13.1641]
[1729020576980,3.2338,154.64,154.62,3.2341]
[1729020577477,9.93,154.65,154.6,11.3453]
[1729020577681,9.93,154.62,154.55,5.4]
[1729020577880,9.93,154.6,154.56,15.33]
[1729020578085,9.93,154.6,154.57,3.235]
[1729020578086,13.1647,154.6,154.57,3.235]
[1729020578288,3.2347,154.6,154.57,3.235]
[1729020578472,3.2347,154.6,154.56,9.93]
[1729020579183,3.2344,154.61,154.58,3.2348]
[1729020580782,3.2341,154.63,154.61,3.2343]
[1729020580979,3.2341,154.63,154.6,9.93]
[1729020581289,3.2341,154.63,154.6,13.1645]
[1729020581883,3.2341,154.63,154.6,3.2345]
[1729020583486,3.234,154.63,154.59,3.2346]
[1729020583686,3.234,154.63,154.58,15.53]
[1729020584083,5.4,154.64,154.58,15.53]
[1729020584287,3.9068,154.67,154.58,15.53]
[1729020584488,5.4,154.66,154.58,15.53]
[1729020584680,3.2339,154.64,154.61,3.2342]
[1729020585188,5.4,154.66,154.61,3.2342]
[1729020585387,3.2339,154.64,154.61,3.2342]
[1729020585890,3.234,154.63,154.61,3.2342]
[1729020587985,5.4,154.66,154.61,3.2342]
[1729020590491,3.234,154.63,154.61,3.2342]
[1729020592603,5.4,154.66,154.57,5.4]
[1729020592897,3.2343,154.62,154.6,3.2345]
[1729020593690,3.2341,154.63,154.6,3.2345]
[1729020594096,5.4,154.66,154.6,3.2346]
[1729020595498,3.2343,154.62,154.6,3.2346]
[1729020599195,5.4,154.66,154.6,3.2346]
[1729020599493,5.4,154.66,154.58,15.53]
[1729020600400,3.234,154.63,154.6,3.2345]
[1729020600902,3.9068,154.67,154.62,3.234]
[1729020600903,3.2336,154.65,154.62,3.234]
[1729020601096,3.2336,154.65,154.6,15.53]
[1729020601097,15.53,154.74,154.64,15.53]
[1729020601301,5.4,154.7,154.64,15.53]
[1729020601599,3.2328,154.69,154.66,3.2332]
[1729020601896,5.4,154.7,154.64,15.53]
[1729020602100,3.2331,154.68,154.66,9.93]
[1729020602491,9.93,154.69,154.64,9.93]
[1729020602690,3.2335,154.66,154.64,9.93]
[1729020603595,3.2335,154.66,154.62,1.3153]
[1729020603596,3.2338,154.64,154.63,9.93]
[1729020603793,9.93,154.66,154.61,9.93]
[1729020603988,15.33,154.66,154.61,9.93]
[1729020604189,3.2342,154.62,154.61,9.93]
[1729020605499,15.33,154.66,154.61,9.93]
[1729020605906,5.4,154.66,154.59,18.7647]
[1729020606104,5.4,154.66,154.59,15.53]
[1729020606303,3.2343,154.62,154.59,15.53]
[1729020607208,3.2343,154.62,154.59,18.7648]
[1729020607505,3.2344,154.61,154.59,15.53]
[1729020607704,5.4,154.66,154.6,3.2346]
[1729020608008,5.4,154.66,154.59,15.53]
[1729020608009,3.2339,154.64,154.59,15.53]
[1729020608398,3.2339,154.64,154.6,3.2345]
[1729020608592,3.2339,154.64,154.59,15.53]
[1729020608798,3.2339,154.64,154.61,15.53]
[1729020608997,2.7386,154.69,154.61,15.53]
[1729020608998,3.2335,154.66,154.61,15.53]
[1729020609305,113.32379389,154.72,154.61,15.53]
[1729020609306,5.4,154.7,154.63,15.53]
[1729020609603,3.2336,154.65,154.63,15.53]
[1729020610299,5.4,154.7,154.63,15.53]
[1729020610700,3.2337,154.65,154.62,4.6647]
[1729020610905,5.4,154.7,154.62,1.4306]
[1729020612208,3.2339,154.64,154.62,1.4306]
[1729020612603,5.4,154.7,154.61,15.53]
[1729020612906,3.2342,154.63,154.59,20.93]
[1729020613099,1.3119,154.69,154.61,15.53]
[1729020613303,3.2339,154.64,154.61,18.7643]
[1729020615515,1.3119,154.69,154.61,18.7643]
[1729020615702,3.234,154.63,154.61,18.7643]
[1729020617404,4.47506566,154.69,154.61,15.53]
[1729020617614,3.2342,154.62,154.61,15.53]
[1729020621313,3.234,154.63,154.61,15.53]
[1729020621516,1.3441,154.68,154.61,18.7643]
[1729020622512,3.2339,154.64,154.61,18.7643]
[1729020622914,1.3441,154.68,154.59,20.93]
[1729020623216,3.2343,154.62,154.59,18.7646]
[1729020624118,3.2345,154.61,154.59,15.53]
[1729020625518,3.2346,154.6,154.58,1.4355]
[1729020625712,3.2346,154.6,154.58,4.6705]
[1729020625912,3.2346,154.6,154.59,9.94]
[1729020626117,9.94,154.64,154.59,9.94]
[1729020626317,3.2345,154.61,154.59,9.94]
[1729020628220,5.38,154.66,154.6,3.2345]
[1729020628524,5.38,154.66,154.62,9.94]
[1729020628720,3.234,154.63,154.62,9.94]
[1729020628915,15.32,154.66,154.61,9.94]
[1729020629527,3.2342,154.62,154.61,9.94]
[1729020631426,3.2341,154.63,154.61,9.94]
[1729020631627,15.32,154.66,154.61,9.94]
[1729020631923,9.94,154.65,154.6,9.94]
[1729020632626,3.2343,154.62,154.6,9.94]
[1729020633321,9.94,154.65,154.6,9.94]
[1729020633525,3.2344,154.61,154.6,9.94]
[1729020634129,3.2342,154.62,154.6,13.1746]
[1729020634329,3.2342,154.62,154.61,9.94]
[1729020634529,15.32,154.66,154.61,9.94]
[1729020634727,3.2341,154.63,154.61,9.94]
[1729020635126,15.32,154.66,154.61,9.94]
[1729020635326,3.2342,154.62,154.61,9.94]
[1729020638825,1.3441,154.68,154.61,9.94]
[1729020639030,1.3441,154.68,154.64,9.94]
[1729020640035,3.2334,154.66,154.64,9.94]
[1729020641528,3.233,154.68,154.65,9.94]
[1729020641724,20.60985437,154.71,154.67,9.94]
[1729020641923,20.60985437,154.71,154.68,9.94]
[1729020642228,15.22985437,154.71,154.68,9.94]
[1729020643125,122.17929389,154.72,154.68,9.94]
[1729020643325,122.17929389,154.72,154.67,9.94]
[1729020643534,3.2328,154.69,154.67,9.94]
[1729020644627,122.17929389,154.72,154.67,9.94]
[1729020644823,3.2329,154.68,154.67,9.94]
[1729020645532,3.2333,154.67,154.66,9.94]
[1729020646433,3.233,154.68,154.66,9.94]
[1729020646732,3.233,154.68,154.67,9.94]
[1729020647123,15.27717631,154.71,154.67,9.94]
[1729020647930,3.2329,154.69,154.67,9.94]
[1729020648331,15.27717631,154.71,154.67,9.94]
[1729020648728,112.23929389,154.72,154.67,9.94]
[1729020650038,3.2324,154.71,154.67,9.94]
[1729020650241,112.23929389,154.72,154.67,9.94]
[1729020650535,122.17929389,154.72,154.67,9.94]
[1729020650838,9.94,154.7,154.65,9.94]
[1729020651035,112.23929389,154.72,154.62,9.94]
[1729020651036,9.94,154.68,154.62,9.94]
[1729020651237,9.94,154.66,154.62,9.94]
[1729020652132,3.234,154.63,154.62,9.94]
[1729020653439,5.38,154.68,154.62,9.94]
[1729020653628,5.38,154.68,154.64,9.94]
[1729020654838,3.2335,154.65,154.62,9.94]
[1729020655041,9.94,154.67,154.62,9.94]
[1729020655431,3.2334,154.66,154.62,9.94]
[1729020655733,5.38,154.68,154.63,9.94]
[1729020656938,3.2337,154.65,154.63,9.94]
[1729020657436,2.717,154.69,154.64,9.94]
[1729020657739,3.2333,154.67,154.66,9.94]
[1729020660538,2.717,154.69,154.61,9.94]
[1729020660539,9.94,154.68,154.61,9.94]
[1729020660741,9.94,154.66,154.61,9.94]
[1729020660950,3.2342,154.62,154.61,9.94]
[1729020661437,9.94,154.64,154.59,15.32]
[1729020661743,9.94,154.64,154.59,9.94]
[1729020662129,9.94,154.64,154.6,9.94]
[1729020662540,3.2345,154.61,154.6,9.94]
[1729020662940,3.2345,154.61,154.54,4.604]
[1729020662941,3.2351,154.58,154.54,4.604]
[1729020663239,3.2351,154.58,154.56,9.94]
[1729020664336,3.2351,154.58,154.57,9.94]
[1729020665142,3.2347,154.6,154.57,9.94]
[1729020665338,3.2347,154.6,154.58,9.94]
[1729020665539,3.2343,154.62,154.58,9.94]
[1729020665729,9.94,154.63,154.58,9.94]
[1729020666241,3.2348,154.59,154.58,9.94]
[1729020667144,3.235,154.58,154.57,9.94]
[1729020668445,3.2348,154.6,154.57,9.94]
[1729020668642,9.94,154.62,154.57,9.94]
[1729020668845,12.7179,154.63,154.58,9.94]
[1729020669546,12.7179,154.63,154.59,9.94]
[1729020669547,3.2343,154.62,154.59,9.94]
[1729020669842,3.2343,154.62,154.58,3.2349]
[1729020669843,1.3778,154.63,154.6,9.94]
[1729020671347,3.2344,154.61,154.59,9.94]
[1729020671542,11.3178,154.63,154.57,9.94]
[1729020671950,3.2349,154.59,154.57,9.94]
[1729020673358,3.2349,154.59,154.54,5.38]
[1729020673359,1.3778,154.63,154.58,9.94]
[1729020675555,3.2348,154.59,154.58,9.94]
[1729020675746,9.94,154.6,154.56,9.94]
[1729020675946,3.2356,154.55,154.54,9.94]
[1729020676850,3.236,154.54,154.53,9.94]
[1729020677955,3.236,154.54,154.51,5.9257]
[1729020679955,3.236,154.54,154.51,2.6893]
[1729020680154,3.236,154.54,154.52,3.2362]
[1729020680748,5.38,154.6,154.51,2.6893]
[1729020680952,5.38,154.6,154.54,3.2358]
[1729020681151,5.38,154.6,154.53,15.55]
[1729020682059,3.2356,154.56,154.53,15.55]
[1729020682264,5.38,154.6,154.53,15.55]
[1729020682762,3.2357,154.55,154.53,15.55]
[1729020683657,3.235,154.58,154.53,15.55]
[1729020683860,3.235,154.58,154.55,15.55]
[1729020684356,3.2353,154.57,154.55,15.55]
[1729020684653,5.38,154.61,154.51,2.6893]
[1729020684654,24.11811007,154.61,154.52,15.55]
[1729020684858,24.11811007,154.61,154.51,1.3467]
[1729020685060,3.2359,154.54,154.51,1.3467]
[1729020685766,3.2359,154.54,154.51,4.583]
[1729020687864,3.2359,154.54,154.52,3.2363]
[1729020689163,24.11811007,154.61,154.52,15.55]
[1729020689363,5.38,154.61,154.54,3.2358]
[1729020689773,5.38,154.61,154.52,15.55]
[1729020690065,3.2358,154.55,154.52,18.7861]
[1729020692569,3.2358,154.55,154.52,15.55]
[1729020692771,3.2358,154.55,154.53,3.236]
[1729020693065,24.18738163,154.61,154.52,15.55]
[1729020693066,3.2358,154.54,154.52,15.55]
[1729020694464,3.2358,154.54,154.52,18.7862]
[1729020694871,3.2356,154.56,154.52,15.55]
[1729020695058,8.63738163,154.61,154.53,3.2359]
[1729020695566,3.2357,154.55,154.52,18.7862]
[1729020697270,24.18738163,154.61,154.51,3.2364]
[1729020697765,3.236,154.54,154.51,3.2364]
[1729020698159,3.236,154.54,154.5,15.55]
[1729020698370,3.236,154.54,154.52,3.2362]
[1729020698664,3.2357,154.55,154.52,3.2362]
[1729020699264,3.2354,154.57,154.53,15.55]
[1729020699770,3.2349,154.59,154.56,3.2354]
[1729020700068,1.3117,154.62,154.58,9.94]
[1729020700365,6.6917,154.62,154.58,9.94]
[1729020701072,3.2348,154.59,154.58,9.94]
[1729020701569,3.19139573,154.77,154.58,9.94]
[1729020701763,167.06270575,154.79,154.57,5.38]
[1729020701764,1.4244,154.7,154.57,5.38]
[1729020702071,3.2319,154.73,154.69,9.94]
[1729020702265,3.2319,154.73,154.71,9.94]
[1729020702665,3.2317,154.74,154.71,9.94]
[1729020703066,5.38,154.76,154.71,9.94]
[1729020703371,21.44381708,154.77,154.71,9.94]
[1729020703562,18.1464,154.77,154.71,9.94]
[1729020703759,1.00394943,154.76,154.7,15.53]
[1729020704174,3.2318,154.74,154.7,15.53]
[1729020705074,8.2064,154.77,154.7,15.53]
[1729020705266,3.232,154.73,154.7,15.53]
[1729020707072,8.2064,154.77,154.67,8.6131]
[1729020707073,3.2323,154.71,154.67,8.6131]
[1729020707368,3.2323,154.71,154.68,15.53]
[1729020707767,23.7364,154.77,154.68,15.53]
[1729020707969,3.2321,154.72,154.68,18.7629]
[1729020708277,8.2064,154.77,154.7,15.53]
[1729020708471,3.2318,154.74,154.7,18.7625]
[1729020709165,8.2064,154.77,154.67,5.38]